[Event "DVM U20 2019"]
[Site "Braunschweig"]
[Date "2019.12.30"]
[Round "7"]
[White "Roehr, Tobias"]
[Black "Schubert, Bernhard"]
[Result "1-0"]
[ECO "D53"]
[WhiteElo "2103"]
[BlackElo "1586"]
[Annotator "ChessBase"]
[PlyCount "46"]
[EventDate "2019.12.27"]
[EventType "team-tourn"]
[EventRounds "7"]
[EventCountry "GER"]
[SourceTitle "playchess.com"]
[Source "ChessBase"]
[SourceQuality "1"]
[WhiteTeam "SG Aufbau Elbe Magdeburg"]
[BlackTeam "USV TU Dresden"]
[TimeControl "40/5400+30:1800+30"]

1. d4 {[%emt 0:00:00]} d5 {[%emt 0:00:00]} 2. c4 {[%emt 0:00:00]} e6 {[%emt 0:00:00]} 3. Nc3 {[%emt 0:00:00]} Nf6 {[%emt 0:00:00]} 4. Bg5 {[%emt 0:00:00]} Be7 {[%emt 0:00:00]} 5. e3 {[%emt 0:00:11]} h6 {[%emt 0:00:00]} 6. Bh4 {[%emt 0:00:55]} b6 {[%emt 0:00:34]} 7. cxd5 {[%emt 0:01:34]} exd5 {[%emt 0:00:25]} 8. Bd3 {[%emt 0:02:09]} Bb7 {[%emt 0:00:26]} 9. Nf3 {[%emt 0:03:32]} O-O {[%emt 0:00:47]} 10. O-O {[%emt 0:01:24]} Nbd7 {[%emt 0:00:23]} 11. Rc1 {[%emt 0:02:42]} Rc8 {[%emt 0:01:52]} 12. Qa4 {[%emt 0:02:56]} a5 {[%emt 0:04:36]} 13. Bf5 {[%emt 0:03:27]} c6 {[%emt 0:03:36]} 14. Ne5 {[%emt 0:03:18]} b5 {[%emt 0:09:22]} 15. Qd1 {[%emt 0:00:17]} Rb8 {[%emt 0:03:56]} 16. Bg3 {[%emt 0:15:30]} Ra8 {[%emt 0:04:08]} 17. Nxd7 {[%emt 0:02:29]} Nxd7 {[%emt 0:00:39]} 18. Nxd5 {[%emt 0:01:01]} cxd5 {[%emt 0:00:46]} 19. Bxd7 {[%emt 0:00:12]} Qxd7 {[%emt 0:02:51]} 20. Rc7 {[%emt 0:00:05]} Qd8 {[%emt 0:03:19]} 21. Rxb7 {[%emt 0:00:07]} b4 {[%emt 0:01:35]} 22. Qg4 {[%emt 0:01:25]} f5 {[%emt 0:05:57]} 23. Qf3 {[%emt 0:00:10]} g5 {[%emt 0:10:53] normal} 1-0

[Event "DVM U20 2019"]
[Site "Braunschweig"]
[Date "2019.12.30"]
[Round "7"]
[White "Koll, Lukas"]
[Black "Wu, Luka"]
[Result "1-0"]
[ECO "A20"]
[WhiteElo "2093"]
[BlackElo "2073"]
[Annotator "NA"]
[PlyCount "35"]
[EventDate "2019.12.27"]
[EventType "team-tourn"]
[EventRounds "7"]
[EventCountry "GER"]
[SourceTitle "playchess.com"]
[Source "ChessBase"]
[SourceQuality "1"]
[WhiteTeam "Karlsruher SF"]
[BlackTeam "OSG Baden-Baden"]
[TimeControl "40/5400+30:1800+30"]

1. c4 {[%emt 0:00:00]} e5 {[%emt 0:00:00]} 2. g3 {[%emt 0:00:00]} d6 {[%emt 0:00:00]} 3. Bg2 {[%emt 0:00:00]} f5 {[%emt 0:00:00]} 4. e3 {[%emt 0:03:43]} Nf6 {[%emt 0:00:09]} 5. Ne2 {[%emt 0:00:09]} Be7 {[%emt 0:00:10]} 6. d3 {[%emt 0:01:30]} c6 {[%emt 0:01:30]} 7. Nbc3 {[%emt 0:00:21]} O-O {[%emt 0:00:26]} 8. O-O {[%emt 0:00:09]} Be6 {[%emt 0:00:16]} 9. b3 {[%emt 0:00:30]} Nbd7 {[%emt 0:01:17]} 10. e4 {[%emt 0:02:17]} Nc5 {[%emt 0:02:14]} 11. Qc2 {[%emt 0:01:55]} Rc8 {[%emt 0:01:29]} 12. Re1 {[%emt 0:08:33]} Qe8 {[%emt 0:03:57]} 13. f3 {[%emt 0:06:09]} Qg6 {[%emt 0:00:30]} 14. d4 {[%emt 0:00:30]} exd4 {[%emt 0:00:30]} 15. Nxd4 {[%emt 0:00:30]} fxe4 {[%emt 0:00:30]} 16. Nxe4 {[%emt 0:00:30]} Nfxe4 {[%emt 0:00:30]} 17. fxe4 {[%emt 0:00:30]} Bf6 {[%emt 0:00:30]} 18. Rb1 {[%emt 0:00:30] normal} 1-0

[Event "DVM U20 2019"]
[Site "Braunschweig"]
[Date "2019.12.30"]
[Round "7"]
[White "Engel, Robert"]
[Black "Reimer, Philip"]
[Result "1-0"]
[ECO "B31"]
[WhiteElo "2075"]
[BlackElo "2065"]
[Annotator "NA"]
[PlyCount "78"]
[EventDate "2019.12.27"]
[EventType "team-tourn"]
[EventRounds "7"]
[EventCountry "GER"]
[SourceTitle "playchess.com"]
[Source "ChessBase"]
[SourceQuality "1"]
[WhiteTeam "Hamburger SK"]
[BlackTeam "SK Lehrte 1919"]
[TimeControl "40/5400+30:1800+30"]

1. e4 {[%emt 0:00:00]} c5 {[%emt 0:00:00]} 2. Nf3 {[%emt 0:00:00]} Nc6 {[%emt 0:00:00]} 3. Bb5 {[%emt 0:00:00]} g6 {[%emt 0:00:00]} 4. Bxc6 {[%emt 0:00:00]} dxc6 {[%emt 0:00:00]} 5. d3 {[%emt 0:00:00]} Bg7 {[%emt 0:00:00]} 6. h3 {[%emt 0:00:00]} Nf6 {[%emt 0:00:02]} 7. Nc3 {[%emt 0:00:04]} O-O {[%emt 0:00:09]} 8. Be3 {[%emt 0:00:25]} b6 {[%emt 0:00:05]} 9. O-O e5 {unterminated} 10. Qd2 {[%emt 0:08:48]} Qd6 {[%emt 0:00:33] unterminated} 11. Bh6 {[%emt 0:09:44]} Nh5 {[%emt 0:00:34] unterminated} 12. Ne2 {[%emt 0:05:14]} f6 {[%emt 0:00:06]} 13. Rfd1 {[%emt 0:05:18] unterminated} Be6 {[%emt 0:12:31] unterminated} 14. c3 {[%emt 0:06:31] unterminated} Rad8 {[%emt 0:01:43] unterminated} 15. Bxg7 {[%emt 0:09:03] unterminated} Nxg7 {[%emt 0:02:12] unterminated} 16. Qe3 {[%emt 0:02:40] unterminated} Rfe8 {[%emt 0:19:01] unterminated} 17. b3 $11 {[%emt 0:03:21]} Bf7 {[%emt 0:06:45]} 18. d4 {[%emt 0:02:48]} exd4 {[%emt 0:02:07]} 19. cxd4 {[%emt 0:00:09]} Nf5 {[%emt 0:03:52]} 20. Qd3 {[%emt 0:14:47]} Nxd4 {[%emt 0:02:00]} 21. Nexd4 {[%emt 0:01:20]} cxd4 {[%emt 0:00:13]} 22. Qxd4 {[%emt 0:00:36]} Qxd4 {[%emt 0:05:51]} 23. Nxd4 {[%emt 0:03:05]} Rd6 {[%emt 0:04:21]} 24. Nc2 {[%emt 0:11:09]} Rxd1+ {[%emt 0:02:16]} 25. Rxd1 {[%emt 0:00:05]} Rxe4 {[%emt 0:02:48]} 26. Rd8+ Kg7 {[%emt 0:03:12]} 27. Rd7 {[%emt 0:01:58]} a5 {[%emt 0:09:00]} 28. Nd4 {[%emt 0:00:47]} c5 {[%emt 0:03:42]} 29. Nb5 {[%emt 0:00:56]} Kf8 {[%emt 0:06:10]} 30. Rxf7+ {[%emt 0:00:09]} Kxf7 {[%emt 0:00:36]} 31. Nd6+ {[%emt 0:00:05]} Ke6 {[%emt 0:00:16]} 32. Nxe4 {[%emt 0:00:03]} Ke5 {[%emt 0:00:17]} 33. Nd2 {[%emt 0:05:11]} b5 {[%emt 0:01:11]} 34. a4 {[%emt 0:03:02]} c4 {[%emt 0:10:23]} 35. axb5 {[%emt 0:02:03]} c3 {[%emt 0:00:16]} 36. Nf3+ {[%emt 0:00:15]} Kd5 {[%emt 0:00:14]} 37. Ne1 {[%emt 0:00:03]} Kc5 {[%emt 0:00:16]} 38. Nc2 {[%emt 0:00:20]} Kxb5 {[%emt 0:00:17]} 39. Kf1 {[%emt 0:00:05]} a4 {normal} 1-0

[Event "DVM U20 2019"]
[Site "Braunschweig"]
[Date "2019.12.30"]
[Round "7"]
[White "Weller, Uli"]
[Black "Schimnatkowski, Lukas"]
[Result "1-0"]
[ECO "B76"]
[WhiteElo "2070"]
[BlackElo "2157"]
[Annotator "NA"]
[PlyCount "29"]
[EventDate "2019.12.27"]
[EventType "team-tourn"]
[EventRounds "7"]
[EventCountry "GER"]
[SourceTitle "playchess.com"]
[Source "ChessBase"]
[SourceQuality "1"]
[WhiteTeam "SF Augsburg"]
[BlackTeam "SF Essen-Katernberg"]
[TimeControl "40/5400+30:1800+30"]

1. e4 {[%emt 0:00:00]} c5 {[%emt 0:00:00]} 2. Nc3 {[%emt 0:01:52]} Nc6 {[%emt 0:00:21]} 3. Nge2 {[%emt 0:01:24]} g6 {[%emt 0:01:41]} 4. d4 {[%emt 0:01:57]} cxd4 {[%emt 0:00:05]} 5. Nxd4 {[%emt 0:00:06]} Bg7 {[%emt 0:00:29]} 6. Be3 {[%emt 0:00:11]} d6 {[%emt 0:06:56]} 7. Qd2 {[%emt 0:04:56]} Nf6 {[%emt 0:00:13]} 8. f3 {[%emt 0:01:38]} O-O {[%emt 0:04:55]} 9. O-O-O {[%emt 0:01:10]} Nxd4 {[%emt 0:00:08]} 10. Bxd4 {[%emt 0:00:22]} Be6 {[%emt 0:00:04]} 11. Nd5 {[%emt 0:09:03]} Qd7 12. Nxf6+ {[%emt 0:04:46]} Bxf6 {[%emt 0:23:05]} 13. Bxf6 {[%emt 0:00:12]} exf6 {[%emt 0:00:02]} 14. Qxd6 {[%emt 0:28:19]} Qa4 {[%emt 0:00:16]} 15. a3 {[%emt 0:00:50] normal Übertragungsfehler, weitere Züge fehlen} 1-0

[Event "DVM U20 2019"]
[Site "Braunschweig"]
[Date "2019.12.30"]
[Round "7"]
[White "Dechant, Georg"]
[Black "Elier, Ali"]
[Result "1/2-1/2"]
[ECO "C70"]
[WhiteElo "2065"]
[BlackElo "2032"]
[Annotator "NA"]
[PlyCount "102"]
[EventDate "2019.12.27"]
[EventType "team-tourn"]
[EventRounds "7"]
[EventCountry "GER"]
[SourceTitle "playchess.com"]
[Source "ChessBase"]
[SourceQuality "1"]
[WhiteTeam "SC Bavaria Regensburg"]
[BlackTeam "SF Brackel"]
[TimeControl "40/5400+30:1800+30"]

1. e4 {[%emt 0:00:00]} e5 {[%emt 0:00:00]} 2. Nf3 {[%emt 0:00:00]} Nc6 {[%emt 0:01:07]} 3. Bb5 {[%emt 0:00:00]} a6 {[%emt 0:00:03]} 4. Ba4 {[%emt 0:00:00]} b5 {[%emt 0:00:03]} 5. Bb3 {[%emt 0:00:00]} Na5 {[%emt 0:00:04]} 6. O-O {[%emt 0:00:04]} d6 {[%emt 0:00:02]} 7. d4 {[%emt 0:00:34] unterminated} exd4 {[%emt 0:00:04]} 8. Nxd4 {[%emt 0:01:07]} Bb7 {[%emt 0:00:05]} 9. Nf5 {[%emt 0:02:45] C70: Ruy Lopez: 3...a6 4 Ba4, Norwegian and Delayed Schliemann} (9. c4 c5 10. Nf5 g6 11. Ne3 Bg7 12. cxb5 axb5 13. Bd5 Nf6 14. Bxb7 Nxb7 15. Nc3 b4 16. Ncd5 O-O 17. Qd3 Na5 18. a4 Re8 19. Nxf6+ Bxf6 20. Rb1 b3 21. Bd2 Nc6 22. Qxb3 Nd4 23. Qd3 Rxa4 {½-½ (23) Morozevich,A (2656)-Vallejo Pons,F (2688) Kazan 2019}) 9... g6 {[%emt 0:02:38]} 10. Ng3 {[%emt 0:00:36]} Bg7 {[%emt 0:01:43]} 11. Nc3 {[%emt 0:05:22]} Nxb3 $146 {[%emt 0:02:08]} ({Predecessor:} 11... Ne7 12. f4 Qd7 13. f5 gxf5 14. exf5 Nxb3 15. axb3 Bxc3 16. bxc3 O-O-O {0-1 (32) Rasik,V (2470)-Pechac,J (2469) Pardubice 2019}) 12. axb3 {[%emt 0:00:06]} Nf6 {[%emt 0:00:17]} 13. b4 {[%emt 0:06:58]} O-O {[%emt 0:00:32]} 14. Bg5 {[%emt 0:00:56]} h6 {[%emt 0:00:26]} 15. Be3 {[%emt 0:00:06] unterminated} Qe7 {[%emt 0:21:36] unterminated} 16. Re1 {[%emt 0:03:26]} Rfe8 {[%emt 0:03:43] unterminated} 17. f3 {[%emt 0:08:55] unterminated} Kh7 {[%emt 0:09:14] unterminated} 18. Qd2 {[%emt 0:12:23] unterminated} Nd7 {[%emt 0:09:27] unterminated} 19. Bd4 {[%emt 0:04:49]} Bxd4+ {[%emt 0:04:09] unterminated} 20. Qxd4 {[%emt 0:00:03]} Qe5 {[%emt 0:00:17]} 21. Qf2 {[%emt 0:01:03] unterminated} Nb6 {[%emt 0:01:23]} 22. f4 {[%emt 0:01:10]} Qf6 {[%emt 0:02:59] unterminated} 23. e5 {[%emt 0:09:54]} dxe5 {[%emt 0:00:50] unterminated} 24. Nge4 $11 {[%emt 0:00:43]} Qf5 {[%emt 0:04:02]} 25. Nc5 {[%emt 0:04:54]} Bc6 {[%emt 0:09:41]} 26. fxe5 {[%emt 0:00:22]} Qxf2+ {[%emt 0:06:07]} 27. Kxf2 {[%emt 0:00:03]} Rad8 {[%emt 0:01:09]} 28. Re2 {[%emt 0:02:27]} Nc4 {[%emt 0:07:54]} 29. e6 {[%emt 0:01:18]} fxe6 {[%emt 0:00:34]} 30. Rxa6 {[%emt 0:00:09]} Rd6 {[%emt 0:02:14]} 31. b3 {[%emt 0:00:33]} Nb6 {[%emt 0:00:21]} 32. Kg3 {[%emt 0:02:28]} e5 {[%emt 0:02:21]} 33. N3e4 {[%emt 0:02:41]} Bxe4 {[%emt 0:00:16]} 34. Nxe4 {[%emt 0:00:04]} Rc6 {[%emt 0:00:57]} 35. Ra5 {[%emt 0:00:36]} Nd5 {[%emt 0:02:42]} 36. Rxb5 {[%emt 0:00:12]} Nf4 {[%emt 0:01:28]} 37. Rd2 {[%emt 0:00:07]} g5 {[%emt 0:00:06]} 38. Rc5 {[%emt 0:00:45]} Rxc5 {[%emt 0:00:59]} 39. bxc5 {[%emt 0:00:10]} Re7 {[%emt 0:00:12]} 40. c6 {[%emt 0:01:04]} Kg6 {[%emt 0:00:06]} 41. Rd7 {[%emt 0:30:33]} Kf7 {[%emt 0:31:58]} 42. Kf3 {[%emt 0:04:17]} Ne6 {[%emt 0:02:23]} 43. Rxe7+ {[%emt 0:01:40]} Kxe7 {[%emt 0:01:46]} 44. Kg4 {[%emt 0:00:17]} Nd4 {[%emt 0:01:05]} 45. Kh5 {[%emt 0:00:37]} Nxc2 {[%emt 0:00:09]} 46. Kxh6 {[%emt 0:00:20]} Nd4 {[%emt 0:00:05]} 47. Kxg5 {[%emt 0:00:59]} Nxc6 {[%emt 0:00:46]} 48. Kf5 {[%emt 0:00:07]} Nd4+ {[%emt 0:00:15]} 49. Kxe5 {[%emt 0:00:05]} Nxb3 {[%emt 0:00:09]} 50. Kd5 {[%emt 0:00:13]} Nc1 {[%emt 0:00:40]} 51. h4 {[%emt 0:00:31]} Kf7 {[%emt 0:00:25] normal} 1/2-1/2

[Event "DVM U20 2019"]
[Site "Braunschweig"]
[Date "2019.12.30"]
[Round "7"]
[White "Garbuz, Vitaliy"]
[Black "Oberhofer, Cedric"]
[Result "1/2-1/2"]
[ECO "B21"]
[WhiteElo "2064"]
[BlackElo "2260"]
[Annotator "ChessBase"]
[PlyCount "55"]
[EventDate "2019.12.27"]
[EventType "team-tourn"]
[EventRounds "7"]
[EventCountry "GER"]
[SourceTitle "playchess.com"]
[Source "ChessBase"]
[SourceQuality "1"]
[WhiteTeam "SF Brackel"]
[BlackTeam "SC Bavaria Regensburg"]
[TimeControl "40/5400+30:1800+30"]

1. e4 {[%emt 0:25:15]} c5 {[%emt 0:00:00]} 2. d4 {[%emt 0:00:18]} cxd4 {[%emt 0:00:15]} 3. c3 {[%emt 0:00:10]} g6 {[%emt 0:00:44]} 4. Nf3 {[%emt 0:00:06]} d5 {[%emt 0:02:38]} 5. exd5 {[%emt 0:01:16]} Qxd5 {[%emt 0:00:19]} 6. Qxd4 {[%emt 0:02:02]} Nf6 {[%emt 0:02:24]} 7. Bc4 {[%emt 0:02:04]} Qxd4 {[%emt 0:00:24]} 8. Nxd4 {[%emt 0:00:30]} a6 {[%emt 0:06:40]} 9. O-O {[%emt 0:01:35]} Bg7 {[%emt 0:02:14]} 10. Re1 {[%emt 0:02:26]} e6 {[%emt 0:00:22]} 11. a4 {[%emt 0:01:09]} Bd7 {[%emt 0:03:52]} 12. Nd2 {[%emt 0:06:07]} O-O {[%emt 0:04:14]} 13. N2b3 {[%emt 0:00:55]} Nc6 {[%emt 0:03:23]} 14. Nxc6 {[%emt 0:01:53]} Bxc6 {[%emt 0:01:55]} 15. Na5 {[%emt 0:00:11]} Rac8 {[%emt 0:00:09]} 16. Nxc6 {[%emt 0:00:07]} Rxc6 {[%emt 0:00:02]} 17. Be2 {[%emt 0:00:11]} Nd5 {[%emt 0:08:09]} 18. Bf3 {[%emt 0:01:27]} b5 {[%emt 0:06:53]} 19. axb5 {[%emt 0:00:27]} axb5 {[%emt 0:00:01]} 20. Ra5 {[%emt 0:01:10]} Rb6 {[%emt 0:05:58]} 21. Bxd5 {[%emt 0:06:45]} exd5 {[%emt 0:00:20]} 22. Rd1 {[%emt 0:00:35]} Re8 {[%emt 0:17:32]} 23. Be3 {[%emt 0:00:30]} Rbb8 {[%emt 0:00:07]} 24. Rxd5 {[%emt 0:01:40]} b4 {[%emt 0:00:04]} 25. cxb4 {[%emt 0:01:54]} Rxb4 {[%emt 0:00:21]} 26. Rd7 {[%emt 0:03:47]} Bd4 {[%emt 0:02:24]} 27. h3 {[%emt 0:04:58]} Bxe3 {[%emt 0:01:23]} 28. fxe3 {[%emt 0:00:07] normal} 1/2-1/2

[Event "DVM U20 2019"]
[Site "Braunschweig"]
[Date "2019.12.30"]
[Round "7"]
[White "Yankelevich, Michael"]
[Black "Melde, Benjamin"]
[Result "1/2-1/2"]
[ECO "B23"]
[WhiteElo "2064"]
[BlackElo "2120"]
[Annotator "ChessBase"]
[PlyCount "67"]
[EventDate "2019.12.27"]
[EventType "team-tourn"]
[EventRounds "7"]
[EventCountry "GER"]
[SourceTitle "playchess.com"]
[Source "ChessBase"]
[SourceQuality "1"]
[WhiteTeam "SG Trier"]
[BlackTeam "SK Turm Kleve"]
[TimeControl "40/5400+30:1800+30"]

1. e4 {[%emt 0:00:00]} c5 {[%emt 0:00:00]} 2. Nc3 {[%emt 0:00:00]} a6 {[%emt 0:00:00]} 3. g3 {[%emt 0:00:00]} b5 {[%emt 0:00:00]} 4. Bg2 {[%emt 0:00:00]} Bb7 {[%emt 0:00:00]} 5. d3 {[%emt 0:00:00]} e6 {[%emt 0:00:01]} 6. f4 {[%emt 0:00:54]} d5 {[%emt 0:00:06]} 7. exd5 {[%emt 0:00:06]} Nf6 {[%emt 0:00:05]} 8. Nf3 {[%emt 0:00:10]} exd5 {[%emt 0:00:06]} 9. O-O {[%emt 0:00:07]} Be7 {[%emt 0:00:13]} 10. h3 {[%emt 0:02:01]} O-O {[%emt 0:09:18]} 11. Ne2 {[%emt 0:02:21]} d4 {[%emt 0:07:43]} 12. g4 {[%emt 0:01:57]} Nc6 {[%emt 0:04:34]} 13. Ng3 {[%emt 0:01:19]} Re8 {[%emt 0:00:07]} 14. Ng5 {[%emt 0:02:43]} Qd7 {[%emt 0:26:00]} 15. N5e4 {[%emt 0:03:48]} Nb4 {[%emt 0:19:55]} 16. Nxf6+ {[%emt 0:04:44]} Bxf6 {[%emt 0:00:02]} 17. Ne4 {[%emt 0:00:14]} Bxe4 {[%emt 0:03:29]} 18. Bxe4 {[%emt 0:00:10]} Rad8 {[%emt 0:00:02]} 19. g5 {[%emt 0:01:29]} Be7 {[%emt 0:00:05]} 20. f5 {[%emt 0:00:07]} g6 {[%emt 0:00:57]} 21. a3 {[%emt 0:02:23]} Nc6 {[%emt 0:03:57]} 22. h4 {[%emt 0:02:23]} Bd6 {[%emt 0:09:23]} 23. h5 {[%emt 0:01:47]} Rxe4 {[%emt 0:01:06]} 24. dxe4 {[%emt 0:03:23]} Qe7 {[%emt 0:01:55]} 25. hxg6 {[%emt 0:01:01]} hxg6 {[%emt 0:00:01]} 26. Qg4 {[%emt 0:01:13]} Ne5 {[%emt 0:02:16]} 27. Qh3 {[%emt 0:01:23]} Nc4 {[%emt 0:02:56]} 28. b3 {[%emt 0:01:25]} Ne3 {[%emt 0:01:26]} 29. Bxe3 {[%emt 0:00:14]} dxe3 {[%emt 0:00:01]} 30. Qxe3 {[%emt 0:00:18]} Be5 {[%emt 0:01:39]} 31. Rad1 {[%emt 0:05:29]} Bd4 {[%emt 0:00:23]} 32. Rxd4 {[%emt 0:00:10]} Rxd4 {[%emt 0:00:01]} 33. fxg6 {[%emt 0:01:46]} fxg6 {[%emt 0:01:27] normal} 34. Rf6 1/2-1/2

[Event "DVM U20 2019"]
[Site "Braunschweig"]
[Date "2019.12.30"]
[Round "7"]
[White "Martin III, Richard"]
[Black "Wegmer, Leon"]
[Result "0-1"]
[ECO "C02"]
[WhiteElo "2043"]
[BlackElo "1939"]
[Annotator "NA RC"]
[PlyCount "24"]
[EventDate "2019.12.27"]
[EventType "team-tourn"]
[EventRounds "7"]
[EventCountry "GER"]
[SourceTitle "playchess.com"]
[Source "ChessBase"]
[SourceQuality "1"]
[WhiteTeam "OSG Baden-Baden"]
[BlackTeam "Karlsruher SF"]
[TimeControl "40/5400+30:1800+30"]

1. e4 {[%emt 0:00:00]} e6 {[%emt 0:00:00]} 2. d4 {[%emt 0:00:00]} d5 {[%emt 0:00:00]} 3. e5 {[%emt 0:00:00]} c5 {[%emt 0:00:00]} 4. c3 {[%emt 0:00:00]} Nc6 {[%emt 0:00:00]} 5. Nf3 {[%emt 0:00:00]} Qb6 {[%emt 0:00:00]} 6. Be2 {[%emt 0:00:00]} cxd4 {[%emt 0:00:00]} 7. cxd4 {[%emt 0:00:00]} Nge7 {[%emt 0:00:00]} 8. Nc3 {[%emt 0:00:17]} Nf5 {[%emt 0:00:27]} 9. Na4 {[%emt 0:00:05]} Qa5+ {[%emt 0:00:24]} 10. Nc3 {[%emt 0:00:06]} Bb4 {[%emt 0:01:15]} 11. g4 {[%emt 0:04:59]} Nfxd4 {[%emt 0:08:10]} 12. Nxd4 {[%emt 0:02:29]} Bxc3+ {[%emt 0:00:08] normal} 0-1

[Event "DVM U20 2019"]
[Site "Braunschweig"]
[Date "2019.12.30"]
[Round "7"]
[White "Kracht, Raphael"]
[Black "Gabler, Eric"]
[Result "0-1"]
[ECO "B21"]
[WhiteElo "2031"]
[BlackElo "2064"]
[Annotator "NA"]
[PlyCount "66"]
[EventDate "2019.12.27"]
[EventType "team-tourn"]
[EventRounds "7"]
[EventCountry "GER"]
[SourceTitle "playchess.com"]
[Source "ChessBase"]
[SourceQuality "1"]
[WhiteTeam "SF Brackel"]
[BlackTeam "SC Bavaria Regensburg"]
[TimeControl "40/5400+30:1800+30"]

1. e4 {[%emt 0:00:00]} c5 {[%emt 0:00:00]} 2. d4 {[%emt 0:00:00]} cxd4 3. c3 dxc3 {[%emt 0:00:00]} 4. Nxc3 {[%emt 0:00:00]} d6 {[%emt 0:00:00]} 5. Bc4 {[%emt 0:00:00]} Nc6 {[%emt 0:01:18]} 6. Nf3 e6 {[%emt 0:00:10]} 7. O-O {[%emt 0:00:00]} Nf6 {[%emt 0:00:56]} 8. Qe2 {[%emt 0:00:00]} Be7 {[%emt 0:00:30]} 9. Rd1 {[%emt 0:00:00]} e5 {[%emt 0:00:34]} 10. Be3 {[%emt 0:00:30]} O-O {[%emt 0:01:25]} 11. Rac1 {[%emt 0:00:09]} Be6 {[%emt 0:04:11]} 12. b4 {[%emt 0:00:06]} Qe8 {[%emt 0:26:39]} 13. Bxe6 {[%emt 0:03:28]} fxe6 {[%emt 0:00:07]} 14. Qc4 {[%emt 0:00:03] unterminated} Qc8 {[%emt 0:09:25] unterminated} 15. Qb3 {[%emt 0:02:48] unterminated} Ne8 {[%emt 0:16:50] unterminated} 16. b5 $16 {[%emt 0:09:01]} ({White should play} 16. Na4) 16... Na5 {[%emt 0:01:35]} 17. Qb4 {[%emt 0:00:22]} Bd8 {[%emt 0:01:34]} 18. Ne2 {[%emt 0:06:02]} Qb8 {[%emt 0:00:28]} 19. Ng3 {[%emt 0:04:04]} b6 {[%emt 0:01:20]} 20. h4 {[%emt 0:11:44]} Qb7 {[%emt 0:01:36]} 21. h5 {[%emt 0:12:51]} h6 {[%emt 0:04:29]} 22. Rc2 {[%emt 0:16:14]} Bf6 {[%emt 0:03:59]} 23. Bc1 {[%emt 0:00:47]} Rf7 {[%emt 0:01:24]} 24. Bb2 {[%emt 0:00:30]} Rc8 {[%emt 0:00:30]} 25. Rxc8 {[%emt 0:17:50]} Qxc8 {[%emt 0:01:10]} 26. Nf1 {[%emt 0:00:30]} Rc7 {[%emt 0:00:30]} 27. Ne3 {[%emt 0:05:17]} Qb7 {[%emt 0:06:47]} 28. a4 {[%emt 0:02:37]} Qc8 {[%emt 0:02:21]} 29. Ba1 {[%emt 0:00:30]} Rc1 {[%emt 0:00:30]} 30. Qe1 {[%emt 0:00:38]} Rxd1 {[%emt 0:00:38]} 31. Qxd1 {[%emt 0:00:07]} Qc5 32. Kh2 {[%emt 0:04:17]} Be7 {[%emt 0:05:00]} 33. Ne1 {[%emt 0:00:27]} Bg5 {[%emt 0:01:23] normal} 0-1

[Event "DVM U20 2019"]
[Site "Braunschweig"]
[Date "2019.12.30"]
[Round "7"]
[White "Kracht, Raphael"]
[Black "Gabler, Eric"]
[Result "*"]
[ECO "B21"]
[WhiteElo "2031"]
[BlackElo "2064"]
[Annotator "NA"]
[PlyCount "42"]
[EventDate "2019.12.27"]
[EventType "team-tourn"]
[EventRounds "7"]
[EventCountry "GER"]
[SourceTitle "playchess.com"]
[Source "ChessBase"]
[SourceQuality "1"]
[WhiteTeam "SF Brackel"]
[BlackTeam "SC Bavaria Regensburg"]
[TimeControl "40/5400+30:1800+30"]

1. e4 {[%emt 0:00:00]} c5 {[%emt 0:00:00]} 2. d4 {[%emt 0:00:00]} cxd4 3. c3 dxc3 {[%emt 0:00:00]} 4. Nxc3 {[%emt 0:00:00]} d6 {[%emt 0:00:00]} 5. Bc4 {[%emt 0:00:00]} Nc6 {[%emt 0:01:18]} 6. Nf3 Nf6 {[%emt 0:00:10]} 7. O-O {[%emt 0:00:00]} e6 {[%emt 0:00:30]} 8. Qe2 {[%emt 0:00:00]} Be7 {[%emt 0:00:30]} 9. Rd1 e5 {[%emt 0:00:30]} 10. Be3 {[%emt 0:00:30]} O-O {[%emt 0:01:25]} 11. Rac1 {[%emt 0:00:09]} Be6 {[%emt 0:04:11]} 12. b4 {[%emt 0:00:06]} Qe8 {[%emt 0:26:39]} 13. Bxe6 {[%emt 0:03:28]} fxe6 {[%emt 0:00:07]} 14. Qc4 {[%emt 0:00:03] unterminated} Qc8 {[%emt 0:09:25] unterminated} 15. Qb3 {[%emt 0:02:48] unterminated} Ne8 {[%emt 0:16:50] unterminated} 16. b5 $16 {[%emt 0:09:01]} ({White should play} 16. Na4) 16... Na5 {[%emt 0:01:35]} 17. Qb4 {[%emt 0:00:22]} Bd8 {[%emt 0:01:34]} 18. Ne2 {[%emt 0:06:02]} Qb8 {[%emt 0:00:28]} 19. Ng3 {[%emt 0:04:04]} b6 {[%emt 0:01:20]} 20. h4 {[%emt 0:11:44]} Qb7 {[%emt 0:01:36]} 21. h5 h6 {[%emt 0:12:51] unterminated} *